{"text_format":"1","workbook":"xlsx","n_sheets":1,"sheets":["PAST for Master Teacher"],"not_rendered":{"charts":0,"images":190,"macros":1,"external_links":0,"defined_names":2,"comments":0,"pivot_tables":0},"unopened":[],"bounds":{"document_bytes":16777216,"sheet_cells":100000,"rows_first":2000,"rows_last":500,"rows_between":2000,"halvings":0,"cell_chars":16384,"cell_head_chars":4096},"cells_cut":0,"cells_raw":0,"read":"whole","date_system":"1900"}

{"sheet":"PAST for Master Teacher","index":0,"n_rows":156,"n_cols":19,"rows_kept":156,"cut":false,"hidden":false,"merged":[[141,2,141,7],[147,2,147,7],[148,2,148,7],[148,11,148,18],[149,11,149,18],[151,10,154,18],[128,18,128,19],[129,17,129,19],[130,18,130,19],[136,2,136,7],[140,2,140,7],[140,11,140,18],[131,18,131,19],[132,18,132,19],[139,11,139,18],[122,18,122,19],[123,18,123,19],[124,18,124,19],[125,18,125,19],[126,18,126,19],[127,18,127,19],[112,18,112,19],[113,18,113,19],[116,18,116,19],[119,18,119,19],[120,18,120,19],[121,18,121,19],[117,18,117,19],[118,18,118,19],[104,18,104,19],[105,18,105,19],[106,18,106,19],[107,18,107,19],[110,18,110,19],[111,18,111,19],[88,18,88,19],[89,18,89,19],[92,18,92,19],[101,18,101,19],[102,18,102,19],[103,18,103,19],[93,18,93,19],[94,18,94,19],[95,18,95,19],[96,18,96,19],[97,18,97,19],[98,18,98,19],[99,18,99,19],[100,18,100,19],[108,18,108,19],[109,18,109,19],[80,18,80,19],[81,18,81,19],[82,18,82,19],[83,18,83,19],[86,18,86,19],[87,18,87,19],[74,18,74,19],[75,18,75,19],[76,18,76,19],[77,18,77,19],[78,18,78,19],[79,18,79,19],[84,18,84,19],[85,18,85,19],[63,18,63,19],[64,18,64,19],[65,18,65,19],[68,18,68,19],[72,18,72,19],[73,18,73,19],[56,18,56,19],[57,18,57,19],[59,18,59,19],[60,18,60,19],[61,18,61,19],[62,18,62,19],[69,18,69,19],[70,18,70,19],[71,18,71,19],[58,18,58,19],[44,18,44,19],[45,18,45,19],[47,18,47,19],[48,18,48,19],[51,18,51,19],[53,18,53,19],[34,18,34,19],[36,18,36,19],[37,18,37,19],[38,18,38,19],[41,18,41,19],[43,18,43,19],[46,18,46,19],[52,18,52,19],[42,18,42,19],[35,18,35,19],[27,18,27,19],[28,18,28,19],[29,18,29,19],[30,18,30,19],[32,18,32,19],[33,18,33,19],[21,18,21,19],[22,18,22,19],[23,18,23,19],[24,18,24,19],[25,18,25,19],[26,18,26,19],[31,18,31,19],[14,3,14,5],[14,8,14,9],[15,10,15,12],[16,18,17,19],[17,0,17,11],[20,18,20,19],[10,0,10,20],[12,13,15,13],[12,14,15,14],[12,15,15,15],[12,16,15,16],[12,17,15,17],[12,18,15,18],[12,19,15,19],[12,20,15,20],[13,2,13,8],[18,18,18,19],[19,18,19,19]]}
[null,null,null,null,"a",null,null,null,null,"San Jose del Monte West"]
[null,null,null,null,null,null,null,null,null,"San Jose del Monte East"]
[null,null,null,null,null,"  ❿      ⃝        ⃝       ⃝       ⃝  "]
[null,null,null,null,null,"   ⃝      ❽       ⃝       ⃝       ⃝  "]
[null,null,null,null,null,"   ⃝       ⃝       ❻      ⃝       ⃝  "]
[null,null,null,null,null,"   ⃝       ⃝        ⃝      ❹      ⃝  "]
[null,null,null,null,null,"   ⃝       ⃝        ⃝       ⃝      ❷  "]
[null,null,null,null,null,"   ⃝       ⃝        ⃝       ⃝      ⃝  "]
[]
[]
["PERFORMANCE APPRAISAL SYSTEM FOR TEACHERS ( PAST)"]
[]
[]
["Name:"]
["District:",null,null,null,null,null,"Division:",null,"City of San Jose del Monte",null,"Region:",null,"III"]
["Rating Period:",null,null,null,null,"First Sem",null,"Second Sem",null,"SY:"]
[null,null,null,null,null,null,null,null,null,null,null,null,null,null,null,null,null,null,"RATING"]
["PERFORMANCE INDICATOR",null,null,null,null,null,null,null,null,null,null,null,null,10,8,6,4,2]
["I. OCCUPATIONAL COMPETENCE (70%)"]
["A.  Lesson Planing and Delivery (45% for Teachers, 40% for Master Teacher)"]
[null,"1.   Formulates/ Adopts objectives of lesson plan."]
[null,"2.   Selects content and prepares appropriate instructional materials/ teaching arts."]
[null,"3.   Selects teaching methods/ strategies."]
[null,"4.   Relates new lesson with previous knowledge/ skills."]
[null,"5.   Provides appropriate motivation."]
[null,"6.   Presents and develops lesson."]
[null,"7.   Conveys ideas clearly."]
[null,"8.   Utilizes the art of questioning to develop higher level of thinking."]
[null,"9.   Ensures pupils/ students participation."]
[null,"10. Addresses individual differences."]
[null,"11. Shows mastery of the subject matter."]
[null,"Assessment"]
[null,"12. Diagnoses learners' needs"]
[null,"13. Evaluates learning outcomes."]
[null,"14. Assessess lessons to determine desired outcomes with the alloted time."]
[null,"Management of time and learning environment"]
[null,"15. Maintains clean ang orderly classroom."]
[null,"16. Maintains classroom conducive to learning."]
[null,"   Total",null,null,null,null,null,null,null,null,null,null,null,null,null,null,null,null,{"$f":"SUM(S21:S38)","v":0}]
[null,null,null,null,null,null,null,null,null,null,null,null,null,null,null,null,null,null,{"$f":"(S39/16)*0.45","v":0}]
[null,null,null,null,null,null,null,null,null,null,null,null,null,null,null,null,null,null,{"$f":"(S39/16)*0.4","v":0}]
[null,"   Sub-rating [(Total Score/16) x 45% or 40%]",null,null,null,null,null,null,null,null,null,null,null,null,null,null,null,null,{"$f":"(S39/16)*0.4","v":0}]
["B.  Technical Assistance (For Master Teacher only- 15%)"]
[null,"1.   Provides assistance to teachers in improving their teaching competence."]
[null,"2.   Prepares prototype instructional materials for use."]
[null,"3.   Assists in the conduct of in service training/ conferences."]
[null,"4.   Serves as demonstration teacher on innovative teaching techniques, classroom"]
[null,"      management, materials development."]
[null,"   Total",null,null,null,null,null,null,null,null,null,null,null,null,null,null,null,null,{"$f":"SUM(S44:T48)","v":0}]
[null,null,null,null,null,null,null,null,null,null,null,null,null,null,null,null,null,null,{"$f":"(S49/4)*0.15","v":0}]
[]
[null,"   Sub-rating [(Total Score/4) x 15%]",null,null,null,null,null,null,null,null,null,null,null,null,null,null,null,null,{"$f":"(S49/4)*0.15","v":0}]
["C. Learners' Achievement (20% for Teachers, 10% for Master Teachers)"]
[null,"1.   Improves learners' achievement level over pretest."]
[null,null,null,null,null,null,null,null,null,null,null,null,null,null,null,null,null,null,{"$f":"S54*20%","v":0}]
[null,null,null,null,null,null,null,null,null,null,null,null,null,null,null,null,null,null,{"$f":"S54*10%","v":0}]
[null,"Total Scores",null,null,null,null,null,null,null,null,null,null,null,null,null,null,null,null,{"$f":"S54","v":0}]
[null,"Sub-rating [(Total Score) 20% or 10%]",null,null,null,null,null,null,null,null,null,null,null,null,null,null,null,null,{"$f":"S57*0.1","v":0}]
["D. School Home and Community Involvement. (5%)"]
[null,"1.   Organizes and maintains functional homeroom /PTA."]
[null,"2.   Conducts Homeroom/PTA meetings to report learner's progress."]
[null,"3.   Dessiminate school policies/ plans/ programs/ accomplistment to the school clientele."]
[null,"4.    Participates in community projects and in civic organizations."]
[null,"5.    Encourage involvement of parents in school programs ang activities."]
[null,"Total Scores",null,null,null,null,null,null,null,null,null,null,null,null,null,null,null,null,{"$f":"SUM(S60:T64)","v":0}]
[null,"Sub-rating [(Total Score/5)x5%]",null,null,null,null,null,null,null,null,null,null,null,null,null,null,null,null,{"$f":"(S65/5)*0.05","v":0}]
[null,null,null,null,null,null,null,null,null,null,null,null,null,null,null,null,null,null,{"$f":"S40+S55+S66","v":0}]
[null,null,null,null,null,null,null,null,null,null,null,null,null,null,null,null,null,null,{"$f":"S66+S56+S50+S41","v":0}]
[null,"Total Rating",null,null,null,null,null,null,null,null,null,null,null,null,null,null,null,null,{"$f":"S66+S58+S52+S42","v":0}]
["II. PROFESSIONAL AND PERSONAL CHARACTERISTIC (20%)"]
[null,"Following are the scaled choices for rating the frequency by which the teacher"]
[null,"demonstrated/ manifested the specified person/ professional characteristics."]
[null,"1.   Decisiveness"]
[null,"2.   Honesty/ Integrity"]
[null,"3.   Dedication/ Commitment"]
[null,"4.   Iniatiative/ Resourcefulness"]
[null,"5. Courtesy"]
[null,"6. Human Relations"]
[null,"7. Leadership"]
[null,"8. Stress Tolerance"]
[null,"9. Fairness/Justice"]
[null,"10. Proper Attire/ Good Grooming"]
[null,"Total Scores",null,null,null,null,null,null,null,null,null,null,null,null,null,null,null,null,{"$f":"SUM(S73:T82)","v":0}]
[null,"Sub-rating [(Total Score/10)x20%]",null,null,null,null,null,null,null,null,null,null,null,null,null,null,null,null,{"$f":"(S83/10)*20%","v":0}]
["III. PUNCTUALITY AND ATTENDANCE (10%)"]
[null,"(including division/ regional meetings and other requires activities)"]
[null,"Punctuality-number of times tardy during the rating period."]
[null,"Attendance-no. Of days absent during the rating perid."]
[null,"Total Scores",null,null,null,null,null,null,null,null,null,null,null,null,null,null,null,null,{"$f":"SUM(S87:T88)","v":0}]
[null,"Sub-rating [(Total Score/2)x10%]",null,null,null,null,null,null,null,null,null,null,null,null,null,null,null,null,{"$f":"(S89/2)*10%","v":0}]
[null,null,null,null,null,null,null,null,null,null,null,null,null,null,null,null,null,null,{"$f":"S67+S84+S90","v":0}]
[null,null,null,null,null,null,null,null,null,null,null,null,null,null,null,null,null,null,{"$f":"S68+S84+S90","v":0}]
[null,"GRAND TOTAL",null,null,null,null,null,null,null,null,null,null,null,null,null,null,null,null,{"$f":"S69+S84+S90","v":0}]
[]
[]
[]
["PLUS FACTOR"]
["(.5 for each indicator but not exceed to 2 points for the total)"]
[]
["For Teachers"]
["1.  Rendered the following technical assistance."]
[null,"1.1   provide assistance to co-teachers in improving their teaching competence."]
[null,"1.2   assisted school administrators in planning ang managing in service-trainings."]
[null,"1.3   served as consultant in the preparation of supplementary instruction materials."]
[null,"1.4   served as demostration teacher on innovative teaching techniques. Classroom management."]
["2.  Conducted action research research whose findings and recomendations have been adopted by the school/ district"]
["3. Subject area cooordinator/ chairman in district/ division"]
["4.  Served as demostration teacher on innovative teaching techniques. Classroom management."]
[]
["For Master Teacher"]
["1.  Published at least (1) article in professional magazines. Periodicals relates to field of specialization."]
["2.  Served as resource person/ consultant in seminar/ workshop/ training related to field of specialization."]
["3. Conducted action research(es), the findings/ results of which were utilized within the rating period."]
["4. Designed evaluation and monitoring program for the district/ division."]
[null,null,null,null,null,null,null,null,null,null,null,null,null,null,null,null,null,null,{"$f":"SUM(S103:T108,S111:T114)","v":0}]
[]
[null,"Total",null,null,null,null,null,null,null,null,null,null,null,null,null,null,null,null,{"$f":"IF(S115>0,S115,\"\")","v":""}]
["SUMMARY OF RATINGS"]
["I-  Instructional Competence."]
[null,{"$f":"A20","v":"A.  Lesson Planing and Delivery (45% for Teachers, 40% for Master Teacher)"},null,null,null,null,null,null,null,null,null,null,null,null,null,null,null,null,{"$f":"S42","v":0}]
[null,{"$f":"A43","v":"B.  Technical Assistance (For Master Teacher only- 15%)"},null,null,null,null,null,null,null,null,null,null,null,null,null,null,null,null,{"$f":"S52","v":0}]
[null,{"$f":"A53","v":"C. Learners' Achievement (20% for Teachers, 10% for Master Teachers)"},null,null,null,null,null,null,null,null,null,null,null,null,null,null,null,null,{"$f":"S58","v":0}]
[null,{"$f":"A59","v":"D. School Home and Community Involvement. (5%)"},null,null,null,null,null,null,null,null,null,null,null,null,null,null,null,null,{"$f":"S66","v":0}]
[]
["II-  Professional and Personal Characteristics (20%)",null,null,null,null,null,null,null,null,null,null,null,null,null,null,null,null,null,{"$f":"S84","v":0}]
["III-  PUNCTUALITY AND ATTENDANCE (10%)",null,null,null,null,null,null,null,null,null,null,null,null,null,null,null,null,null,{"$f":"S90","v":0}]
[null,"Total",null,null,null,null,null,null,null,null,null,null,null,null,null,null,null,null,{"$f":"S93","v":0}]
[null,"Plus Factor",null,null,null,null,null,null,null,null,null,null,null,null,null,null,null,null,{"$f":"S117","v":""}]
[null,"Over-all Rating",null,null,null,null,null,null,null,null,null,null,null,null,null,null,null,null,{"$f":"IF(S128=\"\",S127+0,S128+S127)","v":0}]
[null,"Descriptive Rating",null,null,null,null,null,null,null,null,null,null,null,null,null,null,null,{"$f":"IF(S129<=2.54,\"Poor\",IF(S129<=4.54,\"Unsatisfactory\",IF(S129<=6.54,\"Satisfactory\",IF(S129<=8.54,\"Very Satisfactory\",IF(S129<=12,\"Outstanding\",\"\")))))","v":"Poor"}]
[]
[]
[null,"Remarks:"]
[]
[]
[null,"RATEE:"]
[null,null,{"$f":"C14","v":0},null,null,null,null,null,null,null,"CONFERRED WITH:"]
[]
[]
[null,"CONFORME:"]
[null,null,null,null,null,null,null,null,null,null,null,"ES-Principal / HS-Department Head"]
[null,null,"Signature of Ratee"]
[]
[]
[null,"RECOMMENDING APPROVAL:"]
[null,null,null,null,null,null,null,null,null,null,"APPROVED BY:"]
[]
[]
[null,null,"ES-PSDS / HS-Principal",null,null,null,null,null,null,null,null,"ESTELITA G. PINEDA, CESO V"]
[null,null,null,null,null,null,null,null,null,null,null,"Schools Division Superintendent"]
[null,null,"KEY TO DESCRIPTIVE RATING:"]
[null,null,"8.60 TO 10.00:",null,null,"Oustanding",null,null,null,null,"PARC ACTION"]
[null,null,"6.60 TO 8.50:",null,null,"Very Satisfactory"]
[null,null,"4.60 TO 6.50:",null,null,"Satisfactory"]
[null,null,"2.60 TO 4.50:",null,null,"Unsatisfactory"]
[null,null,"2.50 TO below:",null,null,"Poor"]